Cogmind - Beta 11 X7 @@@ ROGUE MODE // 2021.08.27 @ 06:53:41 Player: Stryker Result: Destroyed by DAS Turret with DAS Cannon Performance ------------- Evolutions (1) 500 Regions Visited (5) 1000 Robots Destroyed (53) 265 Value Destroyed (1064) 1064 Prototype IDs (30) 600 Alien Tech Used (0) 0 Bonus (-280) -280 TOTAL SCORE: 3149 Bonus ------- Follower Combat Kills 25 Aligned with FarCom 300 Friendly Fire -605 Cogmind --------- Core Integrity 0/400 Matter 106/300 Energy 199/200 System Corruption 0% Temperature Cool (0) Movement Rolling (210) Ox8 Location -9/Exiles Parts ------- > --- POWER (1) -------- Cold Fusion Reactor > --- PROPULSION (3) --- Improved Treads Improved Treads Armored Wheel > --- UTILITY (3) ------ Huge Storage Unit Improved Targeting Computer Hardened Light Armor Plating > --- WEAPON (2) ------- Advanced Beam Cannon Grenade Launcher > --- INVENTORY (25) --- Ion Engine Improved Treads Improved Treads Armored Treads Experimental Heat Sink Medium Storage Unit Huge Storage Unit High-capacity Matter Pod (0) Sensor Array Improved Targeting Computer ECM Suite Hardened Light Armor Plating Advanced Component Analysis Suite Thief Drone Bay (3/3) Advanced Beam Cannon Improved Assault Rifle Improved Assault Rifle 8R-AWN's Boregun Grenade Launcher Flail Peak State ------------ > --- POWER ------------ Cold Fusion Reactor > --- PROPULSION ------- Improved Treads Armored Treads Armored Wheel > --- UTILITY ---------- Huge Storage Unit Improved Targeting Computer Advanced Component Analysis Suite > --- WEAPON ----------- Improved Assault Rifle 8R-AWN's Boregun > --- INVENTORY -------- Ion Engine Improved Treads Improved Treads Improved Treads Armored Treads Experimental Heat Sink Medium Storage Unit Huge Storage Unit High-capacity Matter Pod Sensor Array Improved Targeting Computer ECM Suite Hardened Light Armor Plating Hardened Light Armor Plating Hardened Light Armor Plating EX Chip 1 Thief Drone Bay Advanced Beam Cannon Advanced Beam Cannon Improved Assault Rifle Grenade Launcher Grenade Launcher Flail [Rating: 42] Favorites ----------- Power Heavy Ion Engine Engine Heavy Ion Engine Reactor Cold Fusion Reactor Propulsion Armored Treads Treads Armored Treads Leg Aluminum Leg Wheel Wheel Utility Improved Targeting Computer Device ECM Suite Storage Huge Storage Unit Processor Improved Targeting Computer Hackware EX Chip 1 Protection Hardened Light Armor Plating Weapon Advanced Beam Cannon Energy Gun EM Pulse Gun Energy Cannon Advanced Beam Cannon Ballistic Gun Assault Rifle Launcher Grenade Launcher Impact Weapon Flail Build | -11 -10 -10 -9 -9 -9 ------- Run | Scr Mat Min Mat Min Exi Slots Evolved 2 | . . . 2 . . Power . | . . . . . . Propulsion 1 | . . . 1 . . Utility 1 | . . . 1 . . Weapon . | . . . . . . Parts Attached 67 | 1 11 5 26 1 23 Power 6 | . 1 1 2 . 2 Engine 5 | . 1 1 2 . 1 Core . | . . . . . . Reactor 1 | . . . . . 1 Propulsion 26 | . 6 3 11 . 6 Treads 15 | . 1 . 9 . 5 Leg 2 | . 1 1 . . . Wheel 9 | . 4 2 2 . 1 Hover . | . . . . . . Flight . | . . . . . . Utility 14 | 1 3 . 5 . 5 Device 4 | 1 . . 1 . 2 Storage 3 | . 2 . 1 . . Processor 4 | . 1 . 3 . . Hackware 1 | . . . . . 1 Protection 2 | . . . . . 2 Artifact . | . . . . . . Weapon 21 | . 1 1 8 1 10 Energy Gun 1 | . . . 1 . . Energy Cannon 4 | . . . 2 . 2 Ballistic Gun 11 | . 1 1 3 1 5 Ballistic Cannon . | . . . . . . Launcher 4 | . . . 1 . 3 Special Weapon . | . . . . . . Impact Weapon 1 | . . . 1 . . Slashing Weapon . | . . . . . . Piercing Weapon . | . . . . . . Special Melee Weapon . | . . . . . . Unidentified Prototypes 5 | . . . 3 . 2 Parts Lost 11 | . . . 3 . 8 Power 1 | . . . . . 1 Propulsion 5 | . . . 1 . 4 Utility 1 | . . . . . 1 Weapon 4 | . . . 2 . 2 Highest Loss Streak 4 | . . . 2 . 4 Average Slot Usage (%) 99 | . 100 99 99 100 99 Engine 11 | . 14 13 11 11 8 Treads 20 | . 11 14 21 22 24 Wheel 10 | . 5 13 11 11 8 Storage 11 | . 14 14 11 11 11 Processor 19 | . 13 14 20 22 20 Energy Cannon 7 | . . . 9 11 6 Ballistic Gun 14 | . 28 28 9 5 14 Launcher 1 | . . . 1 5 . Naked Turns . | . . . . . . Heaviest Build 106 | 14 88 88 96 95 106 Greatest Support 66 | 20 20 20 12 12 66 Greatest Overweight (x) 9 | . 8 8 9 7 8 Average Overweight (x) 7 | . 2 7 8 7 6 Largest Inventory Capacity 25 | 8 25 25 25 25 25 Average Capacity 24 | 8 17 25 25 25 25 Most Carried 25 | 6 25 25 25 25 25 Average Carried 23 | 6 14 24 24 24 23 Final Capacity 25 | 8 25 25 25 25 25 Final Carried 25 | 6 25 25 25 25 20 Class Distribution -------------------- 100% | Mutant Dominant Class ---------------- Mutant | -10/Materials Mutant | -10/Mines Mutant | -9/Materials Mutant | -9/Mines Mutant | -9/Exiles Resources | -11 -10 -10 -9 -9 -9 ----------- Run | Scr Mat Min Mat Min Exi Matter Collected 1759 | 226 426 138 482 107 380 Remotely . | . . . . . . Salvage Created 1762 | 98 470 76 786 166 166 Parts 110 | 2 32 6 41 15 14 Haulers Intercepted 6 | . 2 . 4 . . Recyclers Shooed 2 | . . . 2 . . Parts Field Recycled . | . . . . . . Retrieved Matter . | . . . . . . Parts Self-Destructed . | . . . . . . Prevented . | . . . . . . Kills | -11 -10 -10 -9 -9 -9 ------- Run | Scr Mat Min Mat Min Exi Combat Hostiles Destroyed 44 | . 8 6 13 9 8 Guns 20 | . 8 6 3 1 2 Cannons 10 | . . . 6 2 2 AOE 14 | . . . 4 6 4 Classes Destroyed 12 | 2 4 2 4 . . Builder 3 | . 2 . . 1 . Tunneler 1 | 1 . . . . . Hauler 6 | . 2 . 4 . . Recycler 2 | 1 1 . . . . Mechanic 1 | . . . 1 . . Watcher 3 | . . . 3 . . Swarmer 16 | . 3 4 3 6 . Grunt 13 | . 5 . 5 3 . Brawler 1 | . . . 1 . . Sentry 4 | . . . 4 . . Demolisher 1 | . . 1 . . . Assembled 8 | . . 1 . . 7 Best Kill Streak 7 | 2 3 3 2 4 7 Combat Bots Only 7 | . 3 3 2 4 7 Max Kills in Single Turn 3 | 1 1 1 1 2 3 Gunslinging . | . . . . . . Exploded 3 | . . . 1 2 3 Melee . | . . . . . . Uniques/NPCs Destroyed 2 | . . . . . 2 EX-BIN (-9/Exiles) 8R-AWN (-9/Exiles) Combat | -11 -10 -10 -9 -9 -9 -------- Run | Scr Mat Min Mat Min Exi Damage Taken 3544 | . 377 181 598 227 2161 Core 491 | . 74 14 105 16 282 Absorbed by Shields . | . . . . . . Core Remaining (%) 82 | 100 . 64 . . . Volleys Fired 200 | 4 41 10 70 16 59 Largest 2 | 2 2 2 2 2 2 Hottest 91 | 40 40 40 91 91 91 Shots Fired 383 | 8 82 20 130 25 118 Gun 312 | 8 82 20 85 9 108 Cannon 53 | . . . 40 9 4 Launcher 18 | . . . 5 7 6 Special . | . . . . . . Kinetic 295 | 8 82 20 68 9 108 Thermal 53 | . . . 40 9 4 Explosive 18 | . . . 5 7 6 Electromagnetic 17 | . . . 17 . . Robot Hit Streak 37 | 4 25 5 14 6 37 Robot Miss Streak 4 | 1 3 1 3 2 4 Penetration Max . | . . . . . . Secondary Targets . | . . . . . . Shots Hit Robots 283 | 6 64 12 89 12 100 Core Hits 115 | 4 27 9 33 12 30 Critical Kills 3 | . 1 . 1 1 . Critical Parts Destroyed 2 | . . 1 1 . . Critical Strikes 5 | . 1 1 2 1 . Meltdown 1 | . . . 1 . . Destroy 4 | . 1 1 1 1 . Melee Attacks 1 | . . . 1 . . Impact 1 | . . . 1 . . Slashing . | . . . . . . Piercing . | . . . . . . Sneak Attacks . | . . . . . . Combat Hostiles . | . . . . . . Follow-up Attacks . | . . . . . . Damage Inflicted 5015 | 68 640 133 1663 630 1881 Guns 3037 | 68 640 133 718 114 1364 Cannons 902 | . . . 716 105 81 Explosions 1076 | . . . 229 411 436 Melee . | . . . . . . Ramming . | . . . . . . Kinetic 2866 | 68 640 133 547 114 1364 Thermal 960 | . . . 774 105 81 Explosive 1018 | . . . 171 411 436 Electromagnetic 171 | . . . 171 . . Impact . | . . . . . . Slashing . | . . . . . . Piercing . | . . . . . . Highest Corruption 1 | . 1 1 . . . Average Corruption 1 | . 1 1 . . . Corruption Purged . | . . . . . . Effects 4 | . 1 3 . . . Message Errors 2 | . 1 1 . . . Data Loss (minor) 2 | . . 2 . . . Overload Shots . | . . . . . . Overflow Damage 36 | . . . 18 2 16 Projectiles 14 | . . . 12 2 . Explosions 22 | . . . 6 . 16 Melee . | . . . . . . Knockbacks . | . . . . . . Impact . | . . . . . . Kinetic . | . . . . . . Secondary . | . . . . . . Self-Inflicted Damage 25 | . . . . 25 . Shots 1 | . . . . 1 . Rammed 1 | . . . 1 . . Targets Rammed 1 | . . . 1 . . Kicked . | . . . . . . Crushed . | . . . . . . Highest Temperature 66 | . 18 . 48 66 18 Average Temperature 12 | . 9 . 10 24 8 Received Heat Transfer 450 | . 168 . 219 63 . Siege Activations . | . . . . . . Robots Corrupted . | . . . . . . Combat Hostiles . | . . . . . . Parts Fried . | . . . . . . Impact Corruptions . | . . . . . . Robots Melted 1 | . . . 1 . . Combat Hostiles . | . . . . . . Parts Melted 5 | . . . 4 1 . Heat Transferred 1728 | . . . 1395 185 148 Parts Sabotaged . | . . . . . . Parts Stolen . | . . . . . . Parts Stripped . | . . . . . . Power Chain Reactions 1 | . . . 1 . . Missiles Intercepted . | . . . . . . Alert | -11 -10 -10 -9 -9 -9 ------- Run | Scr Mat Min Mat Min Exi Peak Influence 261 | 10 261 112 189 165 . Initial 42 | . 6 42 . 25 . Average 65 | 7 130 36 70 54 . Maximum Alert Level 1 | . 1 . . . . Low Security (%) 97 | 100 73 100 100 100 . Level 1 2 | . 26 . . . . Level 2 . | . . . . . . Level 3 . | . . . . . . Level 4 . | . . . . . . Level 5 . | . . . . . . High Security . | . . . . . . Max Security . | . . . . . . Squads Dispatched 3 | . 2 . 1 . . Investigation 1 | . 1 . . . . Extermination . | . . . . . . Reinforcement 2 | . 1 . 1 . . Assault . | . . . . . . Garrison . | . . . . . . Intercept . | . . . . . . Construction Impeded . | . . . . . . Haulers Reinforced . | . . . . . . Active Scanning Responses . | . . . . . . Cargo Convoy Interrupts . | . . . . . . Stealth | -11 -10 -10 -9 -9 -9 --------- Run | Scr Mat Min Mat Min Exi Distress Signals 4 | . 3 . 1 . . Communications Jammed . | . . . . . . Distress Signals . | . . . . . . Times Spotted 75 | . 16 6 26 11 16 Peak Tracking Total 9 | . 5 3 3 4 9 Tactical Retreats 7 | . 1 . 3 . 3 Traps | -11 -10 -10 -9 -9 -9 ------- Run | Scr Mat Min Mat Min Exi Traps Triggered 2 | . 2 . . . . Indirectly . | . . . . . . Trap Hack Attempts . | . . . . . . Triggered . | . . . . . . Disarmed . | . . . . . . Reprogrammed . | . . . . . . Reused . | . . . . . . Traps Extracted . | . . . . . . Installed . | . . . . . . Triggered . | . . . . . . Machines | -11 -10 -10 -9 -9 -9 ---------- Run | Scr Mat Min Mat Min Exi Machines Disabled 4 | . . . 1 1 2 Max in Single Turn 1 | . . . 1 1 1 Machines Sabotaged . | . . . . . . Garrisons Compromised . | . . . . . . Overloaded Fab Kills . | . . . . . . Fab Network Shutdowns . | . . . . . . Hacking | -11 -10 -10 -9 -9 -9 --------- Run | Scr Mat Min Mat Min Exi Machines Accessed 12 | . . . 8 1 3 Terminals 5 | . . . 5 . . Fabricators . | . . . . . . Repair Stations . | . . . . . . Recycling Units 1 | . . . 1 . . Scanalyzers 2 | . . . 2 . . Garrison Access . | . . . . . . Total Hacks 29 | . . . 25 1 3 Successful 19 | . . . 15 1 3 Failed 10 | . . . 10 . . Catastrophic . | . . . . . . Database Lockouts . | . . . . . . Manual 16 | . . . 15 . 1 Terminals 15 | . . . 15 . . Fabricators . | . . . . . . Repair Stations . | . . . . . . Recycling Units 2 | . . . 2 . . Scanalyzers 8 | . . . 8 . . Garrison Access . | . . . . . . Terminal Hacks 8 | . . . 4 1 3 Record 2 | . . . . . 2 Robot Analysis 2 | . . . 2 . . Open Door 1 | . . . . 1 . Locate Traps 2 | . . . 2 . . EX-Prototype ID Bank 1 | . . . . . 1 Fabricator Hacks . | . . . . . . Repair Station Hacks . | . . . . . . Recycling Unit Hacks . | . . . . . . Scanalyzer 8 | . . . 8 . . Insert Component 5 | . . . 5 . . Analyze 3 | . . . 3 . . Garrison Access Hacks . | . . . . . . Unauthorized Hacks 3 | . . . 3 . . Terminals 3 | . . . 3 . . Track 3 | . . . 3 . . Fabricators . | . . . . . . Repair Stations . | . . . . . . Recycling Units . | . . . . . . Scanalyzers . | . . . . . . Garrison Access . | . . . . . . Data Cores Recovered . | . . . . . . Used . | . . . . . . Hacking Detections 8 | . . . 8 . . Full Trace Events . | . . . . . . Feedback Events . | . . . . . . Feedback Blocked . | . . . . . . Robot Schematics Acquired . | . . . . . . Robots Built . | . . . . . . Matter . | . . . . . . Time . | . . . . . . Total Robot Build Rating . | . . . . . . Part Schematics Acquired 3 | . . . 3 . . Parts Built . | . . . . . . Matter . | . . . . . . Time . | . . . . . . Total Part Build Rating . | . . . . . . Parts Repaired . | . . . . . . Time . | . . . . . . Parts Recycled . | . . . . . . Recycled Matter . | . . . . . . Retrieved Matter . | . . . . . . Retrieved Components . | . . . . . . Parts Scanalyzed 3 | . . . 3 . . Part Schematics Acquired 3 | . . . 3 . . Parts Damaged . | . . . . . . Bothacking | -11 -10 -10 -9 -9 -9 ------------ Run | Scr Mat Min Mat Min Exi Used RIF Installer . | . . . . . . Robots Hacked . | . . . . . . Non-combat . | . . . . . . Combat . | . . . . . . Robot Hacks Applied . | . . . . . . Relay Couplers Released . | . . . . . . Robots Rewired . | . . . . . . Allies Hacked . | . . . . . . Hacks Repelled . | . . . . . . Allies | -11 -10 -10 -9 -9 -9 -------- Run | Scr Mat Min Mat Min Exi Total Allies 3 | . . . . 3 . Largest Group 3 | . . . . 3 . Highest-Rated Group 40 | . . . . 40 . Highest-Rated Ally 16 | . . . . 16 . Total Orders . | . . . . . . Ally Attacks 10 | . . . . 10 . Total Damage 117 | . . . . 117 . Kills 1 | . . . . 1 . Allies Corrupted . | . . . . . . Allies Melted . | . . . . . . Intel | -11 -10 -10 -9 -9 -9 ------- Run | Scr Mat Min Mat Min Exi Robot Analysis Total 2 | . . . 2 . . Derelict Logs Recovered 3 | . . 2 . 1 . Drone Launches . | . . . . . . Drone Recoveries . | . . . . . . Exploration | -11 -10 -10 -9 -9 -9 ------------- Run | Scr Mat Min Mat Min Exi Turns Passed 6222 | 42 541 975 2410 1241 1013 Spaces Moved 2647 | 25 215 424 993 612 378 Core . | . . . . . . Treads 71 | . 54 2 . . 15 Legs 68 | 25 43 . . . . Wheels 2508 | . 118 422 993 612 363 Hover . | . . . . . . Flight . | . . . . . . Fastest Speed 115 | 120 115 200 195 195 195 Average Speed 199 | 120 171 201 208 195 200 Slowest Speed 560 | 120 260 560 215 195 270 Overloaded Moves . | . . . . . . Propulsion Burnouts . | . . . . . . Robots Hopped . | . . . . . . Cave-ins Triggered . | . . . . . . Exploration Rate (%) 61 | 3 44 86 69 97 69 Regions Visited 5 Branch Regions 3 Pre-discovered Areas 2 | . . 1 . . 1 Known Exits Taken 1 | . . 1 . . . Unknown Exits Taken 4 | 1 1 . 1 1 . Scrap Searched 4 | . . 3 . 1 . Spaces Dug 7 | . . . 1 6 . Terrain Destroyed 71 | . . . 21 37 13 Melee 1 | . . . 1 . . Projectile . | . . . . . . AOE 70 | . . . 20 37 13 Terrain Rammed . | . . . . . . Walls Destroyed . | . . . . . . Machines Disabled . | . . . . . . Actions | -11 -10 -10 -9 -9 -9 --------- Run | Scr Mat Min Mat Min Exi Total 3255 | 29 319 528 1231 635 513 Wait 219 | . 22 82 69 5 41 Move 2642 | 24 214 423 992 611 378 Hop . | . . . . . . Pick Up 61 | . 21 3 31 1 5 Fast Attach 8 | 1 1 . 3 . 3 Attach 16 | . 1 1 5 . 9 Detach 7 | . 2 . 1 . 4 Swap 43 | . 9 4 18 1 11 Drop 57 | . 8 5 40 1 3 Fire 200 | 4 41 10 70 16 59 Melee 1 | . . . 1 . . Ram 1 | . . . 1 . . Kick . | . . . . . . Crush . | . . . . . . Escape Stasis . | . . . . . . Rewire . | . . . . . . Trap . | . . . . . . Miscellaneous . | . . . . . . Route ------- -11/Scrapyard -10/Materials (discovered 2 exits: *Mat / [*Min]) -10/Mines -9/Materials (discovered 4 exits: [*Mat x3] / *Min) -9/Mines (discovered 3 exits: [*Mat x2] / *Exi) -9/Exiles History --------- Turn | Location | Event 1 | -11/Scrapyard | Discovered new exit (range 3) 43 | -11/Scrapyard | Entered Materials 110 | -10/Materials | Discovered new exit (range 6) 319 | -10/Materials | Build established: Mutant 468 | -10/Materials | Discovered new exit (range 10) 584 | -10/Materials | Entered Mines 617 | -10/Mines | Assembled infested the area 1178 | -10/Mines | Identified exit to Materials 1505 | -10/Mines | Learned location of Zion (-7) 1559 | -10/Mines | Entered Materials 1559 | -9/Materials | Evolved 2 slots: Propulsion x1, Utility x1 2157 | -9/Materials | Discovered new exit (range 11) 2558 | -9/Materials | Discovered new exit (range 16) 2841 | -9/Materials | Discovered new exit (range 5) 3596 | -9/Materials | Discovered new exit (range 14) 3969 | -9/Materials | Entered Mines 3997 | -9/Mines | Learned 2 Materials zone layouts 4078 | -9/Mines | Found the Drone Emporium 4087 | -9/Mines | Found Prototype Device 4209 | -9/Mines | Deemed a non-threat by the Exiles lab entrance 4209 | -9/Mines | Discovered new exit (range 5) 4371 | -9/Mines | Discovered new exit (range 10) 4616 | -9/Mines | Discovered new exit (range 6) 4622 | -9/Mines | Assisted by bots powering up and referring to "LRC-V3" 4641 | -9/Mines | Found a hidden stash of uninstalled traps 5210 | -9/Mines | Entered Exiles 5259 | -9/Exiles | Met 8R-AWN 5290 | -9/Exiles | Met EX-HEX 5390 | -9/Exiles | Met EX-DEC 5597 | -9/Exiles | Met EX-BIN 5630 | -9/Exiles | Aligned with FarCom system 5632 | -9/Exiles | Given EX-Vault access code 5716 | -9/Exiles | Opened EX-Vault 5761 | -9/Exiles | Warned to stay clear of 0b10 Research branches 5774 | -9/Exiles | Destroyed EX-BIN 5775 | -9/Exiles | Attacked by the Exiles 5828 | -9/Exiles | Destroyed 7 combat bots 5910 | -9/Exiles | Lost 4 parts (1p2n1w) 5944 | -9/Exiles | Core integrity fell below 50% 5977 | -9/Exiles | Destroyed 8R-AWN 6037 | -9/Exiles | Found Prototype Ballistic Gun 6037 | -9/Exiles | Identified 8R-AWN's Boregun 6107 | -9/Exiles | Identified Thief Drone Bay 6216 | -9/Exiles | Core integrity fell below 20% 6223 | -9/Exiles | Destroyed by DAS Turret with DAS Cannon Last Messages --------------- 06029_ Acquired Prototype Device. 06030_ Acquired 111 matter. 06032_ Acquired 15 matter. 06037_ Acquired Prototype Ballistic Gun. 06037_ Identified 8R-AWN's Boregun. 06055_ Acquired Unknown Hackware. 06060_ Discarded Imp. Targeting Computer. 06061_ Acquired Adv. Component Analysis Suite. 06064_ Acquired Unknown Hackware. 06068_ Adv. Component Analysis Suite identified Exp. Heat Sink. 06096_ Adv. Component Analysis Suite identified EX Chip 1. 06101_ Discarded EX Chip 1. 06103_ Dropped EX Chip 1. 06107_ Adv. Component Analysis Suite identified Thief Drone Bay. 06147_ Acquired 8 matter. 06205_ Arm. Treads destroyed. 06209_ Knocked back. 06219_ Hrd. Light Armor Plating destroyed. 06221_ Acquired 7 matter. 06221_ Knocked back. Map ----- +----------------------------------------------------+ | ?#######?????????????????????????#" """" | | ?#!!! "#?????????????????????????#" """ | | ?# "#?????????????????????????#" != """ | | ?# "#?????????????????????????#" ! """ | | ## ""#??????????########???????#" !!""" | | #" ""#??????????# """#???????#" !!""" | | #" ""???????????#"" """#???????## !""" | | "" #????????????#"" #???????# """ | | #????????????#"" #???????# X" """ | | ##???????????#"" "#???????# """ | | "#???????????# ""#???????# """"" | | ###?????????#"" ""#???????## ###### | | ##????????### ###??????##"" # ##????? | | ##"" ######???### ###?######"" ####?????? | | ?##" """#####X# #"###""""""" ##???????? | | ??#" """""" " "" ##?????#? | | ??#"# "" """ " #####""" | | ??#### " " " " | | ?????### % " | | ???????### | | ?????????## % | | ??????????## | | ???????????##" % | | ????????????#""" % %"""""" | | ???????????##" % ######""" | | ???????????#"" @ %""##????#####""" | | ???????????#""" """##??????????#""" | | ??????????#""" """##???????????#"""" | | ???????????""" ""#???????????##"" | | ??????????#"" ########??####"""" | | ??????????#""" ## ####""" | | ??????????#""t """" | | ???????????#"" | | ???????????#"""" | | ????????????# | | ????????????#" " "" | | ????????????#"""" ""## ##""" " " " | | ????????????#"" ""#### ######""" "" | | ?????????????" """"##??# #????###"""" | | ?????????????""" """#??## ####???##### | | ?????????????? ""##??#! "!#???????? | | ??????????????"" """##???#" !#???????? | | ???????????????""" #?????#" "#???????? | | ?????????????????""" #??????#!!""!"#???????? | | ?????????????????? ???????########???????? | | ??????????????????#### #??????????????????????? | | ?????????????????????## ???????????????????????? | | ??????????????????????? ???????????????????????? | | ?????????????????????????????????????????????????? | | ?????????????????????????????????????????????????? | +----------------------------------------------------+ Best States ------------- Heat Dissipation 28 Energy Generation 17 Energy Capacity 280 Matter Stores 300 Matter Capacity 300 Sight Range 16 Terrain Scan Range 16 Terrain Scan Density 10 ECM Strength 1 Armor Coverage 150 Evasion (%) 55 Targeting Accuracy 12 Recoil Reduction 3 Item Schematics ----------------- Huge Storage Unit | -9/Materials | Scanalyzed Sensor Array | -9/Materials | Scanalyzed Med. Storage Unit | -9/Materials | Scanalyzed Robot Schematics ------------------ None Fabricated ------------ Nothing Alien Tech Used ----------------- None Achievements -------------- None Challenges ------------ None Game ------ Seed BattleTargetingRailgun Manual? 0 Play Time 01:23:46 Cumulative 1161.6 hours Start 2021.08.26 @ 10:44:41 End 2021.08.27 @ 06:53:41 Sessions 9 Manual Loads 0 Difficulty Rogue Special Mode None Game No. 323 Rogue 323 Adventurer 0 Explorer 0 Win Type - Total 40 Types 25/6/6/3/0/0/0/0/0 Lore% 80 Gallery% 86 Achievement% 73 Wizard Run 0 Options --------- ASCII 1 Keyboard 1 Movement Numpad Keybinds 0 Fullscreen 1 Font 24/Smallcaps Map View 76x50 Tactical HUD 1 Map Filters NONE Filters NONE Steam X RUN: 8ecc538f-e653-4cd4-af68-3adb3b2a8a39